[Event "*** SCC Grand Prix: Titled Tuesday Blitz"]
[Site "Chess.com"]
[Date "2020.07.14"]
[Round "9"]
[White "Oglob71"]
[Black "1977Ivan"]
[Result "0-1"]
[WhiteElo "2526"]
[BlackElo "2688"]
[TimeControl "180+1"]
[EndTime "11:48:54 PDT"]
[Termination "1977Ivan won by checkmate"]

1. d4 {[%clk 0:03:00.9]} 1... Nf6 {[%clk 0:02:59.4]} 2. Nf3 {[%clk 0:02:56.3]}
2... g6 {[%clk 0:02:59.3]} 3. c4 {[%clk 0:02:56.8]} 3... Bg7 {[%clk 0:02:58.8]}
4. Nc3 {[%clk 0:02:57.4]} 4... d6 {[%clk 0:02:59.2]} 5. Bg5 {[%clk 0:02:57.9]}
5... h6 {[%clk 0:02:57.8]} 6. Bh4 {[%clk 0:02:57.5]} 6... c5 {[%clk 0:02:49.5]}
7. d5 {[%clk 0:02:57.2]} 7... g5 {[%clk 0:02:44.6]} 8. Bg3 {[%clk 0:02:57.4]}
8... Nh5 {[%clk 0:02:45.1]} 9. e3 {[%clk 0:02:57.4]} 9... Nd7 {[%clk 0:02:42.6]}
10. Bd3 {[%clk 0:02:57.2]} 10... a6 {[%clk 0:02:41.7]} 11. a4 {[%clk 0:02:52.7]}
11... Qa5 {[%clk 0:02:40.5]} 12. Qc2 {[%clk 0:02:49]} 12... b5 {[%clk
0:02:26.6]} 13. O-O {[%clk 0:02:49]} 13... bxc4 {[%clk 0:02:24.3]} 14. Bxc4
{[%clk 0:02:49.4]} 14... Rb8 {[%clk 0:02:22.1]} 15. Rac1 {[%clk 0:02:38.8]}
15... O-O {[%clk 0:02:16.8]} 16. b3 {[%clk 0:02:28]} 16... Nxg3 {[%clk
0:02:04.8]} 17. hxg3 {[%clk 0:02:26.9]} 17... Nb6 {[%clk 0:02:04.2]} 18. Na2
{[%clk 0:02:08]} 18... Nxc4 {[%clk 0:01:59.7]} 19. Qxc4 {[%clk 0:02:07.6]} 19...
e6 {[%clk 0:01:58.4]} 20. Rfd1 {[%clk 0:02:02.2]} 20... Rb6 {[%clk 0:01:47.4]}
21. e4 {[%clk 0:01:57.8]} 21... exd5 {[%clk 0:01:46.7]} 22. exd5 {[%clk
0:01:58.1]} 22... Bf5 {[%clk 0:01:47]} 23. g4 {[%clk 0:01:55.9]} 23... Bg6
{[%clk 0:01:45.9]} 24. Nd2 {[%clk 0:01:51.9]} 24... Rb7 {[%clk 0:01:38.7]} 25.
Qe2 {[%clk 0:01:43.4]} 25... Ra7 {[%clk 0:01:02.8]} 26. Qf3 {[%clk 0:01:40.3]}
26... Qd8 {[%clk 0:01:01.1]} 27. Nc4 {[%clk 0:01:36]} 27... Rb7 {[%clk 0:01:00]}
28. Re1 {[%clk 0:01:27.8]} 28... Bd4 {[%clk 0:00:56.3]} 29. Rcd1 {[%clk
0:01:23.5]} 29... Bc2 {[%clk 0:00:52.7]} 30. Rxd4 {[%clk 0:01:23.4]} 30... cxd4
{[%clk 0:00:51.9]} 31. Nc1 {[%clk 0:01:22.5]} 31... d3 {[%clk 0:00:51]} 32. Qe3
{[%clk 0:01:07.3]} 32... Bxb3 {[%clk 0:00:46.2]} 33. Qxd3 {[%clk 0:00:55.1]}
33... Bxa4 {[%clk 0:00:41.1]} 34. Ne3 {[%clk 0:00:50.6]} 34... Qa5 {[%clk
0:00:40.2]} 35. Qe2 {[%clk 0:00:40.2]} 35... Re8 {[%clk 0:00:29.8]} 36. Kh2
{[%clk 0:00:33.5]} 36... Qc3 {[%clk 0:00:26.1]} 37. Rh1 {[%clk 0:00:27.8]} 37...
Rb2 {[%clk 0:00:23.8]} 38. Qf3 {[%clk 0:00:27.2]} 38... Qe5+ {[%clk 0:00:22.4]}
39. Kh3 {[%clk 0:00:15.4]} 39... Rxf2 {[%clk 0:00:20.2]} 40. Qxf2 {[%clk
0:00:14.9]} 40... Qxe3+ {[%clk 0:00:20.7]} 41. Qxe3 {[%clk 0:00:15.6]} 41...
Rxe3+ {[%clk 0:00:21.2]} 42. Kh2 {[%clk 0:00:16.3]} 42... Bc2 {[%clk 0:00:18.5]}
43. Rf1 {[%clk 0:00:15.8]} 43... Be4 {[%clk 0:00:18.2]} 44. Rf2 {[%clk
0:00:14.3]} 44... Rc3 {[%clk 0:00:16.4]} 45. Ne2 {[%clk 0:00:14.3]} 45... Rc2
{[%clk 0:00:16.4]} 46. Kg3 {[%clk 0:00:14.8]} 46... a5 {[%clk 0:00:16.7]} 47.
Nd4 {[%clk 0:00:15.1]} 47... Rxf2 {[%clk 0:00:16.7]} 48. Kxf2 {[%clk 0:00:15.7]}
48... a4 {[%clk 0:00:17]} 49. Nb5 {[%clk 0:00:16.1]} 49... Bxd5 {[%clk 0:00:17]}
50. g3 {[%clk 0:00:16.5]} 50... Bb3 {[%clk 0:00:15.5]} 51. Ke3 {[%clk
0:00:15.5]} 51... d5 {[%clk 0:00:15.7]} 52. Kd4 {[%clk 0:00:15.6]} 52... Kg7
{[%clk 0:00:16.2]} 53. Kc3 {[%clk 0:00:15.4]} 53... Kg6 {[%clk 0:00:16.2]} 54.
Nd4 {[%clk 0:00:16.2]} 54... h5 {[%clk 0:00:16.2]} 55. gxh5+ {[%clk 0:00:15.6]}
55... Kxh5 {[%clk 0:00:16.4]} 56. Nf5 {[%clk 0:00:15.5]} 56... Kg4 {[%clk
0:00:16.4]} 57. Nh6+ {[%clk 0:00:14.7]} 57... Kxg3 {[%clk 0:00:16.5]} 58. Nxf7
{[%clk 0:00:14.6]} 58... Kf4 {[%clk 0:00:17]} 59. Nd6 {[%clk 0:00:13.3]} 59...
g4 {[%clk 0:00:17]} 60. Nb5 {[%clk 0:00:14.1]} 60... g3 {[%clk 0:00:17]} 61. Nd4
{[%clk 0:00:13.9]} 61... g2 {[%clk 0:00:16.8]} 62. Ne2+ {[%clk 0:00:14.5]} 62...
Ke3 {[%clk 0:00:16.8]} 63. Ng1 {[%clk 0:00:14.6]} 63... d4+ {[%clk 0:00:16.9]}
64. Kb2 {[%clk 0:00:13.8]} 64... Bd5 {[%clk 0:00:17.2]} 65. Nh3 {[%clk
0:00:13.9]} 65... d3 {[%clk 0:00:17.7]} 66. Kc3 {[%clk 0:00:14.2]} 66... d2
{[%clk 0:00:17.8]} 67. Kc2 {[%clk 0:00:14.7]} 67... a3 {[%clk 0:00:18.1]} 68.
Ng1 {[%clk 0:00:13.8]} 68... a2 {[%clk 0:00:18]} 69. Kb2 {[%clk 0:00:14]} 69...
a1=Q+ {[%clk 0:00:17.3]} 70. Kxa1 {[%clk 0:00:13.4]} 70... d1=Q+ {[%clk
0:00:17.3]} 71. Kb2 {[%clk 0:00:14.1]} 71... Qxg1 {[%clk 0:00:17.2]} 72. Kc3
{[%clk 0:00:13.9]} 72... Qa1+ {[%clk 0:00:16.4]} 73. Kb4 {[%clk 0:00:12.6]}
73... Qd4+ {[%clk 0:00:15.8]} 74. Kb5 {[%clk 0:00:12.5]} 74... Qc4+ {[%clk
0:00:15.8]} 75. Kb6 {[%clk 0:00:12.3]} 75... Qc6+ {[%clk 0:00:15.4]} 76. Ka5
{[%clk 0:00:11.8]} 76... Qb7 {[%clk 0:00:15.3]} 77. Ka4 {[%clk 0:00:11.6]} 77...
g1=Q {[%clk 0:00:14.6]} 78. Ka5 {[%clk 0:00:11.4]} 78... Qa1# {[%clk 0:00:13.5]}
0-1

[Event "*** SCC Grand Prix: Titled Tuesday Blitz"]
[Site "Chess.com"]
[Date "2020.07.14"]
[Round "9"]
[White "mortngabriel"]
[Black "karinachess1"]
[Result "1/2-1/2"]
[WhiteElo "2388"]
[BlackElo "2518"]
[TimeControl "180+1"]
[EndTime "11:49:00 PDT"]
[Termination "Game drawn by repetition"]

1. d4 {[%clk 0:03:00.9]} 1... Nf6 {[%clk 0:02:59.3]} 2. c4 {[%clk 0:02:52.1]}
2... e6 {[%clk 0:02:59]} 3. Nf3 {[%clk 0:02:51.7]} 3... d5 {[%clk 0:02:57.3]} 4.
Nc3 {[%clk 0:02:50.6]} 4... Be7 {[%clk 0:02:56.5]} 5. Bf4 {[%clk 0:02:50]} 5...
O-O {[%clk 0:02:55.7]} 6. e3 {[%clk 0:02:50.5]} 6... b6 {[%clk 0:02:54.4]} 7.
cxd5 {[%clk 0:02:47.5]} 7... Nxd5 {[%clk 0:02:55.3]} 8. Nxd5 {[%clk 0:02:31.1]}
8... Qxd5 {[%clk 0:02:54.7]} 9. a3 {[%clk 0:02:29.8]} 9... c5 {[%clk 0:02:33.4]}
10. dxc5 {[%clk 0:02:29.5]} 10... Qxc5 {[%clk 0:02:20.5]} 11. Bd3 {[%clk
0:02:20]} 11... Bb7 {[%clk 0:02:07.7]} 12. O-O {[%clk 0:02:15.4]} 12... Rd8
{[%clk 0:01:46.3]} 13. Nd4 {[%clk 0:01:40.7]} 13... Nc6 {[%clk 0:01:23.4]} 14.
Rc1 {[%clk 0:01:33.4]} 14... Qd5 {[%clk 0:01:22.3]} 15. Bc4 {[%clk 0:01:06.1]}
15... Qe4 {[%clk 0:01:00]} 16. Bd3 {[%clk 0:00:52.3]} 16... Qd5 {[%clk
0:00:56.3]} 17. Bc4 {[%clk 0:00:52.2]} 17... Qe4 {[%clk 0:00:32]} 18. f3 {[%clk
0:00:36.8]} 18... Qg6 {[%clk 0:00:29.7]} 19. Nxc6 {[%clk 0:00:35.8]} 19... Bxc6
{[%clk 0:00:28.4]} 20. Qc2 {[%clk 0:00:32]} 20... Qxc2 {[%clk 0:00:24.3]} 21.
Rxc2 {[%clk 0:00:32.9]} 21... Rac8 {[%clk 0:00:24.6]} 22. Rfc1 {[%clk
0:00:26.3]} 22... Bb7 {[%clk 0:00:22.9]} 23. Be5 {[%clk 0:00:17.4]} 23... Kf8
{[%clk 0:00:20.9]} 24. Kf2 {[%clk 0:00:16.2]} 24... f6 {[%clk 0:00:19.5]} 25.
Bg3 {[%clk 0:00:07.5]} 25... e5 {[%clk 0:00:19.9]} 26. Ke2 {[%clk 0:00:04.2]}
26... Bd6 {[%clk 0:00:19.4]} 27. Be6 {[%clk 0:00:04.1]} 27... Rxc2+ {[%clk
0:00:19]} 28. Rxc2 {[%clk 0:00:05]} 28... Ke7 {[%clk 0:00:19.5]} 29. Bb3 {[%clk
0:00:04.7]} 29... Ba6+ {[%clk 0:00:19.1]} 30. Bc4 {[%clk 0:00:04.8]} 30... Rc8
{[%clk 0:00:18.6]} 31. Kd3 {[%clk 0:00:04.8]} 31... Bb7 {[%clk 0:00:14.7]} 32.
e4 {[%clk 0:00:03.4]} 32... a6 {[%clk 0:00:14.4]} 33. Bb3 {[%clk 0:00:03.6]}
33... Rd8 {[%clk 0:00:14.1]} 34. Ke2 {[%clk 0:00:03.6]} 34... Bc5 {[%clk
0:00:14.2]} 35. Bf2 {[%clk 0:00:02.9]} 35... Bxf2 {[%clk 0:00:13]} 36. Kxf2
{[%clk 0:00:03.8]} 36... Rd7 {[%clk 0:00:12.8]} 37. Ke3 {[%clk 0:00:03.9]} 37...
b5 {[%clk 0:00:12.4]} 38. Rd2 {[%clk 0:00:03.9]} 38... Bc6 {[%clk 0:00:11.3]}
39. Rxd7+ {[%clk 0:00:03.7]} 39... Kxd7 {[%clk 0:00:12.2]} 40. Bc2 {[%clk
0:00:03.5]} 40... Kd6 {[%clk 0:00:12.4]} 41. Kd3 {[%clk 0:00:02.7]} 41... Kc5
{[%clk 0:00:12.1]} 42. Kc3 {[%clk 0:00:03.1]} 42... a5 {[%clk 0:00:12.1]} 43.
b4+ {[%clk 0:00:03.7]} 43... axb4+ {[%clk 0:00:12.3]} 44. axb4+ {[%clk
0:00:04.6]} 44... Kd6 {[%clk 0:00:12.9]} 45. Bb3 {[%clk 0:00:05.5]} 45... Bd7
{[%clk 0:00:13.2]} 46. g3 {[%clk 0:00:04.8]} 46... h6 {[%clk 0:00:13.6]} 47. h4
{[%clk 0:00:04.5]} 47... g5 {[%clk 0:00:13.5]} 48. hxg5 {[%clk 0:00:04.1]} 48...
hxg5 {[%clk 0:00:14.4]} 49. Bd1 {[%clk 0:00:03.8]} 49... Be8 {[%clk 0:00:14.5]}
50. Be2 {[%clk 0:00:04.1]} 50... Bd7 {[%clk 0:00:14.6]} 51. Bd3 {[%clk
0:00:04.6]} 51... Be8 {[%clk 0:00:14.8]} 52. Be2 {[%clk 0:00:05]} 52... Kc6
{[%clk 0:00:14.6]} 53. Bd3 {[%clk 0:00:05.5]} 53... Bh5 {[%clk 0:00:14.7]} 54.
Be2 {[%clk 0:00:05.7]} 54... Bg6 {[%clk 0:00:14]} 55. Kd2 {[%clk 0:00:05.1]}
55... g4 {[%clk 0:00:12.9]} 56. Ke3 {[%clk 0:00:05.5]} 56... gxf3 {[%clk
0:00:12.9]} 57. Bxf3 {[%clk 0:00:06.1]} 57... Kd6 {[%clk 0:00:13.2]} 58. Bg4
{[%clk 0:00:06.2]} 58... Be8 {[%clk 0:00:12.8]} 59. Be2 {[%clk 0:00:05.6]} 59...
Ke7 {[%clk 0:00:12.6]} 60. Kd3 {[%clk 0:00:04.9]} 60... Bd7 {[%clk 0:00:12.6]}
61. Ke3 {[%clk 0:00:05.2]} 61... Kf7 {[%clk 0:00:12.5]} 62. Bd3 {[%clk
0:00:05.6]} 62... Kg6 {[%clk 0:00:12.5]} 63. Be2 {[%clk 0:00:05.9]} 63... Kg5
{[%clk 0:00:12.9]} 64. Kf2 {[%clk 0:00:04]} 64... Bc6 {[%clk 0:00:12.3]} 65. Ke3
{[%clk 0:00:04]} 65... Kg6 {[%clk 0:00:12.2]} 66. Bf3 {[%clk 0:00:04.3]} 66...
Kg5 {[%clk 0:00:12.1]} 67. Be2 {[%clk 0:00:04.8]} 67... Be8 {[%clk 0:00:12.6]}
68. Bd3 {[%clk 0:00:04.1]} 68... Kg4 {[%clk 0:00:12.3]} 69. Kf2 {[%clk
0:00:04.5]} 69... Kh3 {[%clk 0:00:12.4]} 70. Bf1+ {[%clk 0:00:04.4]} 70... Kg4
{[%clk 0:00:12.3]} 71. Be2+ {[%clk 0:00:04.8]} 71... Kh3 {[%clk 0:00:12.2]} 72.
Bf1+ {[%clk 0:00:05.2]} 72... Kg4 {[%clk 0:00:11.2]} 73. Be2+ {[%clk 0:00:05.5]}
73... Kg5 {[%clk 0:00:11.6]} 74. Bd3 {[%clk 0:00:05.8]} 74... Bc6 {[%clk
0:00:11.8]} 75. Ke3 {[%clk 0:00:05.4]} 75... Kg4 {[%clk 0:00:12.3]} 76. Kf2
{[%clk 0:00:05.8]} 76... Bd7 {[%clk 0:00:12.5]} 77. Be2+ {[%clk 0:00:05.8]}
77... Kg5 {[%clk 0:00:13]} 78. Bd3 {[%clk 0:00:06.3]} 78... Bc6 {[%clk
0:00:13.4]} 79. Bc2 {[%clk 0:00:06]} 79... Be8 {[%clk 0:00:13.8]} 80. Bd3 {[%clk
0:00:06]} 80... Bd7 {[%clk 0:00:13.9]} 81. Be2 {[%clk 0:00:06]} 81... Kg6 {[%clk
0:00:13.7]} 82. Bd3 {[%clk 0:00:06.3]} 82... Kg5 {[%clk 0:00:14.1]} 83. Be2
{[%clk 0:00:06.2]} 1/2-1/2

[Event "*** SCC Grand Prix: Titled Tuesday Blitz"]
[Site "Chess.com"]
[Date "2020.07.14"]
[Round "9"]
[White "2900tactinhos"]
[Black "MomchilPetkov"]
[Result "0-1"]
[WhiteElo "2437"]
[BlackElo "2595"]
[TimeControl "180+1"]
[EndTime "11:49:05 PDT"]
[Termination "MomchilPetkov won by resignation"]

1. d4 {[%clk 0:02:58.7]} 1... Nf6 {[%clk 0:02:57]} 2. c4 {[%clk 0:02:58.7]} 2...
e6 {[%clk 0:02:53.4]} 3. Nf3 {[%clk 0:02:58.2]} 3... d5 {[%clk 0:02:52.7]} 4.
Nc3 {[%clk 0:02:58.2]} 4... Bb4 {[%clk 0:02:51.3]} 5. Qa4+ {[%clk 0:02:57.6]}
5... Nc6 {[%clk 0:02:51.2]} 6. e3 {[%clk 0:02:57.8]} 6... O-O {[%clk 0:02:51.7]}
7. Be2 {[%clk 0:02:58]} 7... dxc4 {[%clk 0:02:48]} 8. Bxc4 {[%clk 0:02:56.9]}
8... a6 {[%clk 0:02:46.2]} 9. Qc2 {[%clk 0:02:56.5]} 9... Bd6 {[%clk 0:02:42.6]}
10. h3 {[%clk 0:02:54.9]} 10... e5 {[%clk 0:02:42.9]} 11. O-O {[%clk 0:02:54.5]}
11... exd4 {[%clk 0:02:41.7]} 12. exd4 {[%clk 0:02:54.7]} 12... h6 {[%clk
0:02:41.8]} 13. a3 {[%clk 0:02:51.7]} 13... b5 {[%clk 0:02:09.7]} 14. Ba2 {[%clk
0:02:48.7]} 14... Bb7 {[%clk 0:02:09.8]} 15. Be3 {[%clk 0:02:23]} 15... Ne7
{[%clk 0:02:02.9]} 16. Ne5 {[%clk 0:02:19.1]} 16... Ned5 {[%clk 0:02:02.3]} 17.
Rae1 {[%clk 0:02:11]} 17... Nxc3 {[%clk 0:01:56.9]} 18. bxc3 {[%clk 0:01:54.6]}
18... Bd5 {[%clk 0:01:56.1]} 19. Bb1 {[%clk 0:01:53.4]} 19... Be4 {[%clk
0:01:53.1]} 20. Qb3 {[%clk 0:01:49.8]} 20... Bxb1 {[%clk 0:01:51.7]} 21. Qxb1
{[%clk 0:01:43.4]} 21... Bxe5 {[%clk 0:01:43.4]} 22. dxe5 {[%clk 0:01:43.2]}
22... Nd5 {[%clk 0:01:43.8]} 23. Bd4 {[%clk 0:01:43.3]} 23... Qg5 {[%clk
0:01:30.3]} 24. Qe4 {[%clk 0:01:34.4]} 24... Rad8 {[%clk 0:00:57.5]} 25. f4
{[%clk 0:01:32.6]} 25... Qh4 {[%clk 0:00:52]} 26. Kh2 {[%clk 0:01:15.6]} 26...
Rfe8 {[%clk 0:00:49.4]} 27. g3 {[%clk 0:01:11.9]} 27... Qe7 {[%clk 0:00:48.9]}
28. f5 {[%clk 0:01:11.9]} 28... Qg5 {[%clk 0:00:46.8]} 29. h4 {[%clk 0:01:07.1]}
29... Qh5 {[%clk 0:00:32.7]} 30. Kh3 {[%clk 0:00:59.4]} 30... Nf6 {[%clk
0:00:26.2]} 31. Qf3 {[%clk 0:00:59.2]} 31... Qxf3 {[%clk 0:00:25.5]} 32. Rxf3
{[%clk 0:00:59.4]} 32... Nd5 {[%clk 0:00:24.3]} 33. g4 {[%clk 0:00:55.3]} 33...
Rc8 {[%clk 0:00:23.9]} 34. Bc5 {[%clk 0:00:53.5]} 34... c6 {[%clk 0:00:21.8]}
35. g5 {[%clk 0:00:52.5]} 35... h5 {[%clk 0:00:17.5]} 36. e6 {[%clk 0:00:46.8]}
36... fxe6 {[%clk 0:00:16.9]} 37. fxe6 {[%clk 0:00:46.8]} 37... Nc7 {[%clk
0:00:17.2]} 38. e7 {[%clk 0:00:36.3]} 38... Nd5 {[%clk 0:00:17.5]} 39. Rf8+
{[%clk 0:00:35.3]} 39... Kh7 {[%clk 0:00:17.9]} 40. Re6 {[%clk 0:00:32.1]} 40...
Rxf8 {[%clk 0:00:13.2]} 41. exf8=Q {[%clk 0:00:31]} 41... Rxf8 {[%clk
0:00:14.1]} 42. Bxf8 {[%clk 0:00:31.1]} 42... Nf4+ {[%clk 0:00:14.4]} 43. Kg3
{[%clk 0:00:23]} 43... Nxe6 {[%clk 0:00:15.3]} 44. Bd6 {[%clk 0:00:23.2]} 44...
Kg6 {[%clk 0:00:15.5]} 45. Kf3 {[%clk 0:00:20.8]} 45... Kf5 {[%clk 0:00:15.7]}
46. Ke3 {[%clk 0:00:17.8]} 46... g6 {[%clk 0:00:12.9]} 47. Bg3 {[%clk
0:00:15.9]} 47... Kg4 {[%clk 0:00:12.8]} 48. Be1 {[%clk 0:00:16]} 48... Kf5
{[%clk 0:00:13]} 49. Bg3 {[%clk 0:00:15.9]} 49... c5 {[%clk 0:00:13.3]} 50. Be1
{[%clk 0:00:14.7]} 50... a5 {[%clk 0:00:13.5]} 51. Bg3 {[%clk 0:00:12.8]} 51...
b4 {[%clk 0:00:13.4]} 52. cxb4 {[%clk 0:00:12.8]} 52... cxb4 {[%clk 0:00:13.6]}
53. axb4 {[%clk 0:00:12.9]} 53... axb4 {[%clk 0:00:13.3]} 54. Be1 {[%clk
0:00:13.3]} 54... b3 {[%clk 0:00:11.6]} 55. Kd3 {[%clk 0:00:10.8]} 55... Kg4
{[%clk 0:00:11.4]} 56. Kc3 {[%clk 0:00:09.2]} 56... Nf4 {[%clk 0:00:11.2]} 57.
Kxb3 {[%clk 0:00:06.7]} 57... Ng2 {[%clk 0:00:11.4]} 58. Bd2 {[%clk 0:00:06.3]}
58... Nxh4 {[%clk 0:00:12.3]} 59. Kc4 {[%clk 0:00:05.4]} 59... Nf3 {[%clk
0:00:13.2]} 60. Be3 {[%clk 0:00:05]} 60... Nxg5 {[%clk 0:00:13.3]} 61. Kc3
{[%clk 0:00:05.6]} 61... Ne4+ {[%clk 0:00:12.2]} 62. Kd3 {[%clk 0:00:05.8]}
62... Kf3 {[%clk 0:00:12.6]} 63. Bh6 {[%clk 0:00:03.7]} 63... g5 {[%clk
0:00:11.5]} 64. Kd4 {[%clk 0:00:03.8]} 64... g4 {[%clk 0:00:11.5]} 0-1

[Event "*** SCC Grand Prix: Titled Tuesday Blitz"]
[Site "Chess.com"]
[Date "2020.07.14"]
[Round "9"]
[White "ARMQUEEN"]
[Black "freshfoodcompany"]
[Result "1/2-1/2"]
[WhiteElo "2440"]
[BlackElo "2281"]
[TimeControl "180+1"]
[EndTime "11:49:06 PDT"]
[Termination "Game drawn by repetition"]

1. e4 {[%clk 0:02:51.4]} 1... c5 {[%clk 0:02:59.8]} 2. Nc3 {[%clk 0:02:48.5]}
2... a6 {[%clk 0:02:59.1]} 3. Bc4 {[%clk 0:02:44.9]} 3... e6 {[%clk 0:02:55.1]}
4. a4 {[%clk 0:02:44.2]} 4... b6 {[%clk 0:02:48.8]} 5. Nf3 {[%clk 0:02:40.9]}
5... d6 {[%clk 0:02:42.1]} 6. d4 {[%clk 0:02:40.7]} 6... Bb7 {[%clk 0:02:35.9]}
7. O-O {[%clk 0:02:39.2]} 7... Be7 {[%clk 0:02:33.2]} 8. Be3 {[%clk 0:02:24.3]}
8... Nf6 {[%clk 0:02:23.1]} 9. Qd3 {[%clk 0:02:19.6]} 9... O-O {[%clk 0:02:11]}
10. d5 {[%clk 0:02:16.7]} 10... exd5 {[%clk 0:02:05.9]} 11. exd5 {[%clk
0:02:15.9]} 11... Nbd7 {[%clk 0:02:02]} 12. h3 {[%clk 0:02:15.5]} 12... Re8
{[%clk 0:01:55.3]} 13. Qd2 {[%clk 0:02:12]} 13... Bf8 {[%clk 0:01:52.5]} 14. Bg5
{[%clk 0:02:10.7]} 14... h6 {[%clk 0:01:50.5]} 15. Bh4 {[%clk 0:02:09.3]} 15...
Qc7 {[%clk 0:01:41.5]} 16. Rae1 {[%clk 0:02:06.2]} 16... Rac8 {[%clk 0:01:30.1]}
17. Kh1 {[%clk 0:01:57.6]} 17... Qb8 {[%clk 0:01:24.9]} 18. g4 {[%clk
0:01:49.6]} 18... Rxe1 {[%clk 0:01:23.1]} 19. Rxe1 {[%clk 0:01:48.3]} 19... Re8
{[%clk 0:01:21.9]} 20. Rg1 {[%clk 0:01:48.3]} 20... Ne4 {[%clk 0:01:15.6]} 21.
Nxe4 {[%clk 0:01:46.7]} 21... Rxe4 {[%clk 0:01:15]} 22. Bd3 {[%clk 0:01:46.8]}
22... Bxd5 {[%clk 0:01:09.5]} 23. Bxe4 {[%clk 0:01:41]} 23... Bxe4 {[%clk
0:01:09.2]} 24. Qe3 {[%clk 0:01:41.1]} 24... Qb7 {[%clk 0:01:08.5]} 25. Rg3
{[%clk 0:01:39.2]} 25... Ne5 {[%clk 0:01:07.2]} 26. Kg2 {[%clk 0:01:28.2]} 26...
g5 {[%clk 0:00:53.1]} 27. Bxg5 {[%clk 0:01:21.7]} 27... Nxf3 {[%clk 0:00:40.3]}
28. Bf6 {[%clk 0:01:12.2]} 28... Ne1+ {[%clk 0:00:18.7]} 29. Kf1 {[%clk
0:01:10.4]} 29... Nxc2 {[%clk 0:00:17.5]} 30. Qf4 {[%clk 0:01:10.3]} 30... Bg6
{[%clk 0:00:14.5]} 31. Kg1 {[%clk 0:01:02.5]} 31... Qd5 {[%clk 0:00:13]} 32. Bc3
{[%clk 0:00:50.2]} 32... Qd1+ {[%clk 0:00:12.3]} 33. Kh2 {[%clk 0:00:50.4]}
33... Bg7 {[%clk 0:00:10.1]} 34. g5 {[%clk 0:00:43.5]} 34... Bxc3 {[%clk
0:00:08.5]} 35. bxc3 {[%clk 0:00:43]} 35... h5 {[%clk 0:00:05.2]} 36. Qf6 {[%clk
0:00:36.2]} 36... Qd2 {[%clk 0:00:04.2]} 37. c4 {[%clk 0:00:25.8]} 37... Kh7
{[%clk 0:00:04.3]} 38. h4 {[%clk 0:00:24.2]} 38... Nd4 {[%clk 0:00:04.4]} 39.
Re3 {[%clk 0:00:23.4]} 39... Nf5 {[%clk 0:00:04.5]} 40. Rf3 {[%clk 0:00:21.6]}
40... Qe2 {[%clk 0:00:04.8]} 41. Rxf5 {[%clk 0:00:18.9]} 41... Bxf5 {[%clk
0:00:05.1]} 42. Qxf5+ {[%clk 0:00:19.5]} 42... Kg7 {[%clk 0:00:05.5]} 43. Qf6+
{[%clk 0:00:19.9]} 43... Kg8 {[%clk 0:00:05.9]} 44. Qd8+ {[%clk 0:00:19.1]}
44... Kh7 {[%clk 0:00:06.2]} 45. Kg2 {[%clk 0:00:17.7]} 45... Qe4+ {[%clk
0:00:05.7]} 46. Kg1 {[%clk 0:00:17.3]} 46... Qg4+ {[%clk 0:00:05.6]} 47. Kf1
{[%clk 0:00:17]} 47... Qxc4+ {[%clk 0:00:06.1]} 48. Kg2 {[%clk 0:00:16.9]} 48...
Qg4+ {[%clk 0:00:06.2]} 49. Kf1 {[%clk 0:00:17.3]} 49... Qxh4 {[%clk 0:00:06.6]}
50. Qf6 {[%clk 0:00:17]} 50... Qc4+ {[%clk 0:00:06.9]} 51. Kg2 {[%clk
0:00:16.8]} 51... Qd5+ {[%clk 0:00:06.8]} 52. Kg3 {[%clk 0:00:16.3]} 52... Qd3+
{[%clk 0:00:07]} 53. Kg2 {[%clk 0:00:16.3]} 53... Qe4+ {[%clk 0:00:07]} 54. Kf1
{[%clk 0:00:13.8]} 54... Qg6 {[%clk 0:00:07.5]} 55. Qf4 {[%clk 0:00:12.8]} 55...
Kg7 {[%clk 0:00:07.3]} 56. Kg2 {[%clk 0:00:11.3]} 56... d5 {[%clk 0:00:07.5]}
57. Qe5+ {[%clk 0:00:11.2]} 57... f6 {[%clk 0:00:06.9]} 58. Qe7+ {[%clk
0:00:11]} 58... Qf7 {[%clk 0:00:07.1]} 59. gxf6+ {[%clk 0:00:10.7]} 59... Kg6
{[%clk 0:00:07.3]} 60. Qe5 {[%clk 0:00:10.7]} 60... Qxf6 {[%clk 0:00:07.2]} 61.
Qe8+ {[%clk 0:00:10.9]} 61... Kg7 {[%clk 0:00:07]} 62. Qd7+ {[%clk 0:00:11]}
62... Qf7 {[%clk 0:00:07.3]} 63. Qd8 {[%clk 0:00:07.8]} 63... Kh6 {[%clk
0:00:07.2]} 64. Kf1 {[%clk 0:00:06]} 64... Qg6 {[%clk 0:00:07.1]} 65. Qxd5
{[%clk 0:00:05.9]} 65... Qb1+ {[%clk 0:00:06.4]} 66. Kg2 {[%clk 0:00:05.7]}
66... Qg6+ {[%clk 0:00:06.7]} 67. Kf1 {[%clk 0:00:06]} 67... Qf6 {[%clk
0:00:05.4]} 68. Qd2+ {[%clk 0:00:05.3]} 68... Kg7 {[%clk 0:00:05.2]} 69. Qd7+
{[%clk 0:00:05.5]} 69... Kg6 {[%clk 0:00:05.1]} 70. Qd3+ {[%clk 0:00:05.4]}
70... Kh6 {[%clk 0:00:05.4]} 71. Qe3+ {[%clk 0:00:05.4]} 71... Kh7 {[%clk
0:00:05.4]} 72. Qd3+ {[%clk 0:00:04.8]} 72... Qg6 {[%clk 0:00:05.7]} 73. Qxa6
{[%clk 0:00:04.9]} 73... Qb1+ {[%clk 0:00:04.9]} 74. Kg2 {[%clk 0:00:05.2]}
74... Qe4+ {[%clk 0:00:04.9]} 75. Kg3 {[%clk 0:00:05.7]} 75... Qg4+ {[%clk
0:00:05.1]} 76. Kh2 {[%clk 0:00:05.8]} 76... Qh4+ {[%clk 0:00:05.5]} 77. Kg1
{[%clk 0:00:06.3]} 77... Qg4+ {[%clk 0:00:05.6]} 78. Kf1 {[%clk 0:00:06.8]}
78... Qd1+ {[%clk 0:00:05.8]} 79. Kg2 {[%clk 0:00:06.4]} 79... Qd5+ {[%clk
0:00:05.9]} 80. Kg1 {[%clk 0:00:06.4]} 80... Qg5+ {[%clk 0:00:06.3]} 81. Kf1
{[%clk 0:00:06.5]} 81... Qc1+ {[%clk 0:00:06.6]} 82. Kg2 {[%clk 0:00:07.2]}
82... Qg5+ {[%clk 0:00:06.6]} 83. Kf1 {[%clk 0:00:07.5]} 83... Qc1+ {[%clk
0:00:05.3]} 84. Kg2 {[%clk 0:00:07.8]} 84... Qg5+ {[%clk 0:00:05.2]} 85. Kf1
{[%clk 0:00:08.2]} 1/2-1/2